bitfinex-derivatives/quotes_BTCF0:USTF0_20210111
["timestamp","ask_amount","ask_price","bid_price","bid_amount"]
[1610373706360,0.2933,32932.0,32869.0,0.00030599]
[1610373706560,0.2933,32932.0,32868.0,0.08848]
[1610373706760,0.38491,32932.0,32868.0,0.08848]
[1610373707764,0.13632608,32869.0,32868.0,0.08848]
[1610373708165,0.13632608,32869.0,32868.0,0.08878617]
[1610373709479,0.13632608,32869.0,32868.0,0.08848]
[1610373709667,0.13632608,32869.0,32868.0,0.22480608]
[1610373709866,4.5116,32896.0,32868.0,0.22480608]
[1610373710468,0.10438,32923.0,32868.0,0.22480608]
[1610373710667,1.0,32996.0,32868.0,0.22480608]
[1610373710878,0.288,32995.0,32869.0,0.00030642]
[1610373711070,0.288,32995.0,32869.0,0.02136067]
[1610373711671,0.288,32995.0,32927.0,0.13632608]
[1610373711868,0.288,32995.0,32869.0,0.02136067]
[1610373712068,0.288,32995.0,32927.0,0.08066]
[1610373713067,0.2953,32994.0,32927.0,0.08066]
[1610373713469,0.02910716,32993.0,32928.0,0.02134921]
[1610373713873,0.13632608,32929.0,32928.0,0.02134921]
[1610373714073,1.0,32963.0,32928.0,0.02134921]
[1610373714283,1.0,32963.0,32928.0,0.00030578]
[1610373714672,0.27347237,32962.0,32929.0,0.00030586]
[1610373714872,0.27347237,32962.0,32928.0,0.00030593]
[1610373715071,0.0003725,32961.0,32928.0,0.00030593]
[1610373715472,0.0291304,32961.0,32868.0,0.08848]
[1610373715675,0.0291304,32961.0,32844.0,0.11139]
[1610373715872,0.13632608,32851.0,32849.0,0.13632608]
[1610373716075,1.0,32959.0,32801.0,0.1331739]
[1610373716275,0.08631,32948.0,32850.0,0.02135887]
[1610373716477,0.08631,32948.0,32805.0,0.02136216]
[1610373716478,0.00037271,32947.0,32805.0,0.02136216]
[1610373716683,0.30235777,32947.0,32852.0,0.02136685]
[1610373716872,0.30235777,32947.0,32857.0,3.9524]
[1610373716873,3.9829,32929.0,32857.0,3.9524]
[1610373717083,4.07295,32929.0,32857.0,3.9524]
[1610373717292,0.00037276,32928.0,32858.0,0.07167781]
[1610373717885,0.13632608,32862.0,32858.0,0.07167781]
[1610373718277,0.10474,32896.0,32858.0,0.07167781]
[1610373719077,3.9829,32929.0,32858.0,0.07167781]
[1610373719476,0.00037277,32928.0,32858.0,0.07167781]
[1610373720277,3.9829,32929.0,32858.0,0.07167781]
[1610373720978,3.9829,32929.0,32859.0,0.0213595]
[1610373721178,3.9829,32929.0,32859.0,0.1078695]
[1610373721578,3.9829,32929.0,32860.0,0.02136084]
[1610373721780,3.9829,32929.0,32885.0,0.13632608]
[1610373722178,3.9829,32929.0,32885.0,0.22334608]
[1610373722378,3.9829,32929.0,32886.0,0.02135903]
[1610373722878,0.00037402,32928.0,32886.0,0.02135903]
[1610373723279,0.09584402,32928.0,32886.0,0.02135903]
[1610373723479,0.09547,32928.0,32859.0,0.08651]
[1610373723883,0.13632608,32860.0,32859.0,0.08651]
[1610373724081,0.10949,32877.0,32859.0,0.10710279]
[1610373724482,0.10949,32877.0,32859.0,0.02059279]
[1610373724682,0.10949,32877.0,32860.0,0.00030432]
[1610373725284,0.10949,32877.0,32858.0,0.00030434]
[1610373725483,0.10949,32877.0,32839.0,0.0924]
[1610373725883,0.13632608,32840.0,32839.0,0.0924]
[1610373726486,0.13632608,32840.0,32839.0,0.09270446]
[1610373727685,0.13632608,32840.0,32778.0,0.54150735]
[1610373727886,4.9729,32845.0,32791.0,0.13632608]
[1610373728086,4.9729,32845.0,32791.0,0.08431]
[1610373728295,4.9729,32845.0,32792.0,0.0188344]
[1610373728486,0.02,32839.0,32792.0,0.0188344]
[1610373728687,0.10961,32839.0,32792.0,0.0188344]
[1610373729088,0.00037364,32838.0,32792.0,0.0188344]
[1610373729887,0.13632608,32793.0,32792.0,0.0003]
[1610373730087,0.13632608,32793.0,32778.0,0.54150735]
[1610373730286,0.22723608,32793.0,32778.0,0.54150735]
[1610373730486,0.22723608,32793.0,32779.0,0.01884832]
[1610373730686,0.22723608,32793.0,32779.0,0.00030021]
[1610373730887,0.22723608,32793.0,32780.0,0.0188509]
[1610373731291,0.22723608,32793.0,32768.0,0.01885194]
[1610373731488,0.00037388,32792.0,32755.0,0.01885521]
[1610373731691,0.00037388,32792.0,32769.0,0.01885547]
[1610373731892,0.13632608,32770.0,32769.0,0.01885547]
[1610373732090,0.13632608,32770.0,32768.0,0.08702]
[1610373734294,0.13632608,32770.0,32710.0,0.013]
[1610373735594,3.9751,32758.0,32710.0,0.013]
[1610373735797,0.13632608,32735.0,32714.0,0.13632608]
[1610373735997,0.0911,32747.0,32714.0,0.13632608]
[1610373736497,0.0911,32747.0,32723.0,0.0922]
[1610373736697,0.0911,32747.0,32734.0,0.15619907]
[1610373737199,0.0911,32747.0,32734.0,0.26957907]
[1610373737899,0.13632608,32735.0,32734.0,0.26957907]
[1610373738098,3.9751,32758.0,32734.0,0.17777907]
[1610373739902,1.13632608,32735.0,32734.0,0.17777907]
[1610373740303,1.0,32735.0,32710.0,0.013]
[1610373741941,0.13632608,32711.0,32710.0,0.013]
[1610373748915,0.0706,32726.0,32710.0,0.013]
[1610373749915,0.13632608,32711.0,32710.0,0.013]
[1610373751629,0.23336608,32711.0,32710.0,0.013]
[1610373753628,0.23336608,32711.0,32608.0,0.06530824]
[1610373754030,0.13632608,32672.0,32634.0,0.13632608]
[1610373754426,0.13632608,32672.0,32671.0,0.03695366]
[1610373754629,0.13632608,32672.0,32671.0,5.366e-05]
[1610373755024,0.21000608,32672.0,32671.0,5.366e-05]
[1610373755431,0.07368,32672.0,32671.0,5.366e-05]
[1610373756024,0.21000608,32672.0,32671.0,5.366e-05]
[1610373757420,0.07368,32672.0,32671.0,5.366e-05]
[1610373757622,0.07368,32672.0,32608.0,0.06530824]
[1610373758020,0.0002,32663.0,32608.0,0.06530824]
[1610373758222,0.07368,32672.0,32500.0,8.58238434]
[1610373758428,0.07368,32672.0,32500.0,8.68389434]
[1610373758620,0.07368,32672.0,32501.0,0.01572838]
[1610373758820,0.07368,32672.0,32501.0,0.10772838]
[1610373759020,0.07368,32672.0,32501.0,0.15085066]
[1610373759021,0.2995,32671.0,32501.0,0.15085066]
[1610373759223,0.2995,32671.0,32502.0,0.10832497]
[1610373759620,0.2995,32671.0,32503.0,0.00029545]
[1610373759822,0.2995,32671.0,32503.0,0.01572696]
[1610373760022,0.13632608,32619.0,32605.0,0.13632608]
[1610373760226,0.10028,32623.0,32605.0,0.13632608]
[1610373760422,0.10028,32623.0,32605.0,0.20964608]
[1610373761222,0.2995,32671.0,32605.0,0.07332]
[1610373762022,0.13632608,32606.0,32605.0,0.07332]
[1610373762424,0.07157,32623.0,32605.0,0.07332]
[1610373762823,0.07157,32623.0,32600.0,0.09546]
[1610373764043,0.13632608,32601.0,32600.0,0.09546]
[1610373766928,4.51832608,32601.0,32600.0,0.09546]
[1610373767929,4.51832608,32601.0,32535.0,4.4079]
[1610373768129,4.382,32601.0,32535.0,4.4079]
[1610373770034,4.382,32601.0,32540.0,0.13632608]
[1610373770233,4.382,32601.0,32540.0,0.07326]
[1610373773234,3.6566,32579.0,32540.0,0.07326]
[1610373773433,3.72561,32579.0,32540.0,0.07326]
[1610373774034,0.13632608,32571.0,32566.0,0.13632608]
[1610373774234,3.6566,32579.0,32566.0,0.13632608]
[1610373774434,3.6566,32579.0,32566.0,0.24540608]
[1610373774836,3.2203,32579.0,32566.0,0.24540608]
[1610373775034,4.4522,32612.0,32566.0,0.24540608]
[1610373775636,4.9228,32652.0,32566.0,0.24540608]
[1610373776035,4.9228,32652.0,32621.0,0.13632608]
[1610373776236,4.9228,32652.0,32621.0,0.22957608]
[1610373776436,0.2854,32651.0,32621.0,0.22957608]
[1610373778236,0.2854,32651.0,32650.0,0.13632608]
[1610373778436,0.2854,32651.0,32650.0,0.24033608]
[1610373778636,0.02409,32651.0,32650.0,0.24033608]
[1610373778837,0.0204,32747.0,32650.0,0.24033608]
[1610373778838,0.0204,32747.0,32650.0,0.10401]
[1610373780340,0.0204,32747.0,32642.0,0.09835]
[1610373780538,0.10183,32747.0,32642.0,0.09835]
[1610373780738,0.13632608,32643.0,32642.0,0.09835]
[1610373780938,0.23680608,32643.0,32642.0,0.09835]
[1610373781338,0.23680608,32643.0,32598.0,0.13632608]
[1610373781738,0.23680608,32643.0,32566.0,0.10908]
[1610373781940,0.23680608,32643.0,32528.0,0.0933]
[1610373782139,0.23680608,32643.0,32513.0,0.092]
[1610373782638,0.10048,32643.0,32572.0,0.13632608]
[1610373782841,0.10048,32643.0,32551.0,0.09685]
[1610373783039,0.10048,32643.0,32559.0,0.10598]
[1610373784040,0.10048,32643.0,32540.0,0.08281]
[1610373784640,0.10048,32643.0,32589.0,0.13632608]
[1610373784840,0.10048,32643.0,32540.0,0.08281]
[1610373786042,0.07739,32643.0,32540.0,0.08281]
[1610373786440,0.07739,32643.0,32541.0,0.0916]
[1610373786641,0.13632608,32629.0,32614.0,0.13632608]
[1610373786840,0.09311,32629.0,32614.0,0.13632608]
[1610373787442,0.07739,32643.0,32614.0,0.13632608]
[1610373787641,0.07739,32643.0,32614.0,0.21234608]
[1610373788441,0.2733,32681.0,32614.0,0.21234608]
[1610373788841,0.40962608,32681.0,32614.0,0.07602]
[1610373789244,0.2733,32681.0,32614.0,0.07602]
[1610373789444,0.2708,32681.0,32614.0,0.07602]
[1610373790044,0.2708,32681.0,32615.0,0.00026697]
[1610373790244,0.2708,32681.0,32614.0,0.07602]
[1610373790646,0.2708,32681.0,32615.0,0.00026926]
[1610373790843,0.2708,32681.0,32680.0,0.13632608]
[1610373791043,0.2708,32681.0,32680.0,0.23795608]
[1610373792444,0.1254,32681.0,32680.0,0.23795608]
[1610373792643,0.0335,32681.0,32680.0,0.23795608]
[1610373793044,0.10874,32713.0,32680.0,0.23795608]
[1610373793645,0.10874,32713.0,32680.0,0.13632608]
[1610373794647,0.10874,32713.0,32646.0,0.09282]
[1610373794847,0.13632608,32686.0,32672.0,0.13632608]
[1610373795046,0.24925608,32686.0,32639.0,0.08852]
[1610373795447,0.11293,32686.0,32639.0,0.08852]
[1610373795850,0.11293,32686.0,32573.0,2.1224879]
[1610373796247,0.11293,32686.0,32567.0,2.13129517]
[1610373796446,0.11293,32686.0,32568.0,0.00027183]
[1610373796649,0.11293,32686.0,32568.0,0.08853]
[1610373796847,0.13632608,32648.0,32568.0,0.08853]
[1610373797048,0.21474608,32648.0,32568.0,0.08853]
[1610373797249,0.07842,32648.0,32568.0,0.08853]
[1610373798052,0.07842,32648.0,32570.0,1.5]
[1610373798455,0.07842,32648.0,32569.0,2.13043172]
[1610373798456,0.07842,32648.0,32583.0,1.5]
[1610373798653,4.4178,32685.0,32583.0,1.5709]
[1610373798854,0.02,32680.0,32676.0,0.13632608]
[1610373799253,0.02,32680.0,32583.0,1.5709]
[1610373799554,0.02,32680.0,32583.0,0.0709]
[1610373799954,0.02,32680.0,32594.0,2.13557491]
[1610373800153,0.02,32680.0,32594.0,2.21237491]
[1610373800353,0.02,32680.0,32594.0,1.5768]
[1610373800754,0.02,32680.0,32679.0,0.13632608]
[1610373803676,0.02,32680.0,32635.0,0.08041]
[1610373804076,0.02,32680.0,32575.0,1.5]
[1610373804477,0.02,32680.0,32595.0,0.00027191]
[1610373804856,0.00037575,32679.0,32595.0,0.00027191]
[1610373805077,0.10446575,32679.0,32595.0,0.00027191]
[1610373805459,0.00037587,32678.0,32595.0,0.00027191]
[1610373806061,1.0,32673.0,32584.0,0.00027209]
[1610373806460,0.00037604,32672.0,32573.0,0.00027214]
[1610373806661,0.08426604,32672.0,32573.0,0.00027214]
[1610373806863,3.518,32666.0,32573.0,0.00027214]
[1610373807063,3.518,32666.0,32564.0,5.0666]
[1610373807265,0.00037613,32665.0,32564.0,5.0666]
[1610373807463,0.11318613,32665.0,32564.0,5.0666]
[1610373807663,0.11318613,32665.0,32565.0,0.00027224]
[1610373807863,1.5003763,32664.0,32565.0,0.00027224]
[1610373808063,1.5,32662.0,32565.0,0.00027224]
[1610373808464,1.53654196,32662.0,32536.0,2.16395601]
[1610373808666,4.3439,32636.0,32531.0,4.6484]
[1610373808865,0.00037646,32635.0,32537.0,0.00027244]
[1610373809264,0.29437646,32635.0,32532.0,0.00027255]
[1610373809664,0.29437646,32635.0,32500.0,4.93430434]
[1610373809665,4.3027,32586.0,32500.0,4.93430434]
[1610373809865,4.38234,32586.0,32500.0,4.93430434]
[1610373810264,4.38234,32586.0,32501.0,0.00027258]
[1610373810464,0.2899,32585.0,32501.0,0.05596258]
[1610373810665,3.9109,32565.0,32501.0,0.05596258]
[1610373810864,3.9109,32565.0,32534.0,0.09632608]
[1610373810865,3.99788,32565.0,32534.0,0.09632608]
[1610373811065,3.99788,32565.0,32519.0,0.11356]
[1610373813669,0.563,32564.0,32519.0,0.11356]
[1610373814872,0.13632608,32553.0,32537.0,0.13632608]
[1610373815071,0.13632608,32553.0,32519.0,0.11356]
[1610373815270,0.20717608,32553.0,32519.0,0.11356]
[1610373815671,0.07085,32553.0,32519.0,0.11356]
[1610373816072,0.07085,32553.0,32508.0,0.10949]
[1610373816271,0.07085,32553.0,32501.0,0.05596258]
[1610373816474,0.07085,32553.0,32485.0,3.7407]
[1610373816671,0.563,32564.0,32485.0,3.7407]
[1610373817072,0.563,32564.0,32554.0,0.13632608]
[1610373817272,0.563,32564.0,32543.0,0.09362]
[1610373818272,0.563,32564.0,32489.0,2.16465447]
[1610373818472,0.563,32564.0,32485.0,3.7407]
[1610373819073,0.563,32564.0,32524.0,0.13632608]
[1610373820073,0.7308,32563.0,32524.0,0.13632608]
[1610373820272,0.08698,32565.0,32524.0,0.13632608]
[1610373820473,1.0,32580.0,32524.0,0.13632608]
[1610373820974,0.13632608,32531.0,32530.0,0.13632608]
[1610373821173,0.06843,32537.0,32530.0,0.13632608]
[1610373821575,0.06843,32537.0,32512.0,0.07929]
[1610373822876,0.06843,32537.0,32426.0,2.6972221]
[1610373822877,0.06843,32537.0,32500.0,4.33759434]
[1610373823077,0.13632608,32513.0,32500.0,4.33759434]
[1610373823278,0.24778608,32513.0,32500.0,4.33759434]
[1610373824277,0.24778608,32513.0,32500.0,4.31759434]
[1610373825078,0.24778608,32513.0,32500.0,4.03513355]
[1610373825079,0.13632608,32501.0,32500.0,4.03513355]
[1610373825278,0.22984608,32501.0,32500.0,4.03513355]
[1610373825679,0.22984608,32501.0,32500.0,1.50943355]
[1610373825884,0.09352,32501.0,32500.0,1.16743355]
[1610373826080,0.09352,32501.0,32500.0,1.07513355]
[1610373826280,0.09352,32501.0,32500.0,0.51363028]
[1610373826480,0.09352,32501.0,32428.0,0.06621741]
[1610373826880,1.09352,32501.0,32428.0,0.06621741]
[1610373827083,0.13632608,32432.0,32428.0,0.06621741]
[1610373827281,0.13632608,32432.0,32417.0,0.13632608]
[1610373827282,4.4689,32446.0,32371.0,0.73074349]
[1610373827482,0.7369,32418.0,32392.0,2.13779555]
[1610373827888,0.7369,32418.0,32382.0,2.67224443]
[1610373828086,0.83011,32418.0,32378.0,2.13843699]
[1610373828482,0.83011,32418.0,32365.0,1.0]
[1610373829085,0.13632608,32372.0,32365.0,1.0]
[1610373829683,0.13632608,32372.0,32338.0,0.06667199]
[1610373831086,0.13632608,32379.0,32357.0,0.13632608]
[1610373831284,0.13632608,32379.0,32357.0,0.20664608]
[1610373831485,0.11146,32410.0,32357.0,0.20664608]
[1610373831685,0.58155489,32481.0,32361.0,1.0]
[1610373831890,7.5262,32387.0,32361.0,1.0]
[1610373832086,0.5757061,32485.0,32361.0,1.0]
[1610373832286,0.073,32393.0,32361.0,1.0]
[1610373833095,0.13632608,32362.0,32340.0,0.0292]
[1610373833289,0.21286608,32362.0,32340.0,0.0292]
[1610373834991,0.13632608,32341.0,32340.0,0.0292]
[1610373835192,0.13632608,32341.0,32248.0,0.06712657]
[1610373837103,0.13632608,32259.0,32248.0,0.06712657]
[1610373837498,0.11275,32292.0,32248.0,0.06712657]
[1610373837693,0.11275,32292.0,32250.0,0.36359]
[1610373838094,0.683,32277.0,32250.0,0.36359]
[1610373839099,0.13632608,32251.0,32250.0,0.07659]
[1610373839295,0.13632608,32251.0,32248.0,0.06712657]
[1610373841496,0.13632608,32251.0,32248.0,0.06524246]
[1610373842098,0.20546608,32251.0,32248.0,0.06524246]
[1610373842498,0.06914,32251.0,32248.0,0.06524246]
[1610373843098,0.06914,32251.0,32250.0,0.13632608]
[1610373843302,0.683,32277.0,32250.0,0.21916608]
[1610373843504,0.683,32277.0,32160.0,0.18101854]
[1610373843698,0.11403,32303.0,32160.0,0.18101854]
[1610373843897,0.11403,32303.0,32160.0,0.28637854]
[1610373844098,1.0,32350.0,32160.0,0.28637854]
[1610373844099,0.84803,32350.0,32160.0,0.28637854]
[1610373844298,0.00191688,32422.0,32160.0,0.28637854]
[1610373844499,0.00191688,32422.0,32161.0,1.5]
[1610373844803,0.00670491,32461.0,32161.0,1.5]
[1610373845200,0.0935,32460.0,32374.0,0.13632608]
[1610373845400,0.1819,32460.0,32167.0,1.5]
[1610373845601,0.13632608,32367.0,32174.0,1.97974073]
[1610373845800,0.0884,32460.0,32175.0,1.5]
[1610373846003,0.0884,32460.0,32182.0,1.97851037]
[1610373846204,0.0884,32460.0,32191.0,1.97830823]
[1610373846401,0.0884,32460.0,32192.0,1.5]
[1610373846601,0.0884,32460.0,32196.0,1.97593364]
[1610373846801,0.0925,32459.0,32197.0,1.5]
[1610373847004,0.0925,32459.0,32200.0,1.97467374]
[1610373847202,0.13632608,32411.0,32392.0,0.13632608]
[1610373847405,0.23359608,32411.0,32209.0,1.97329614]
[1610373847601,0.09727,32411.0,32210.0,1.5]
[1610373847816,0.09727,32411.0,32210.0,2.05230737]
[1610373848102,0.09727,32411.0,32211.0,0.2759]
[1610373848503,3.5746,32355.0,32211.0,0.2759]
[1610373848703,3.67618,32355.0,32211.0,0.2759]
[1610373849304,3.67618,32355.0,32294.0,0.13632608]
[1610373849505,3.67618,32355.0,32229.0,0.09255]
[1610373850707,3.67618,32355.0,32211.0,0.2759]
[1610373851307,0.13632608,32297.0,32283.0,0.13632608]
[1610373851509,0.21375608,32297.0,32211.0,0.2759]
[1610373851707,0.07743,32297.0,32211.0,0.2759]
[1610373852309,3.67618,32355.0,32212.0,1.5]
[1610373852512,0.07188,32299.0,32212.0,1.5]
[1610373853309,3.67618,32355.0,32298.0,0.13632608]
[1610373853310,0.07531,32325.0,32298.0,0.13632608]
[1610373853507,0.07531,32325.0,32298.0,0.20571608]
[1610373854509,0.07531,32325.0,32298.0,0.13632608]
[1610373855310,0.07531,32325.0,32269.0,0.07307]
[1610373855710,0.07531,32325.0,32318.0,0.13632608]
[1610373855910,0.07531,32325.0,32243.0,0.10199]
[1610373856312,0.07531,32325.0,32244.0,0.00026994]
[1610373857713,0.13632608,32318.0,32313.0,0.13632608]
[1610373857913,0.09668,32318.0,32313.0,0.13632608]
[1610373859713,0.09668,32318.0,32317.0,0.13632608]
[1610373860815,0.07531,32325.0,32317.0,0.13632608]
[1610373861014,4.3078,32343.0,32317.0,0.13632608]
[1610373861214,4.0578,32343.0,32317.0,0.13632608]
[1610373861413,0.10158,32355.0,32317.0,0.13632608]
[1610373861615,0.3096604,32493.0,32317.0,0.13632608]
[1610373861815,0.01500157,32493.0,32399.0,0.13632608]
[1610373862016,0.00503609,32497.0,32319.0,0.10341]
[1610373862216,0.10644,32402.0,32319.0,0.10341]
[1610373862615,0.10644,32402.0,32320.0,0.00027179]
[1610373863220,0.10644,32402.0,32319.0,0.10341]
[1610373863416,0.10644,32402.0,32320.0,0.00027172]
[1610373863619,0.10644,32402.0,32320.0,1.50027172]
[1610373863817,0.10644,32402.0,32401.0,0.13632608]
[1610373864018,0.10644,32402.0,32344.0,0.10653]
[1610373865421,0.10644,32402.0,32345.0,1.5]
[1610373865720,0.10644,32402.0,32401.0,0.13632608]
[1610373865920,0.10644,32402.0,32351.0,0.07239]
[1610373866319,0.10644,32402.0,32380.0,4.8351]
[1610373867820,0.10644,32402.0,32401.0,0.13632608]
[1610373868024,0.10644,32402.0,32380.0,4.8351]
[1610373868821,0.10644,32402.0,32380.0,4.39539]
[1610373869021,0.10644,32402.0,32328.0,0.0095]
[1610373869723,0.10644,32402.0,32249.0,2.57239982]
[1610373869724,0.07644,32402.0,32251.0,2.06301376]
[1610373869923,0.13632608,32329.0,32251.0,2.06301376]
[1610373870123,0.13632608,32329.0,32227.0,2.06506152]
[1610373870529,0.13632608,32329.0,32228.0,0.0002739]
[1610373870727,0.09897,32402.0,32228.0,0.0882839]
[1610373871126,0.09897,32402.0,32229.0,0.2855]
[1610373871926,0.0003801,32401.0,32260.0,0.13632608]
[1610373872128,0.09897,32402.0,32229.0,0.2855]
[1610373872533,0.00703064,32397.0,32230.0,0.00027423]
[1610373872930,0.00038003,32396.0,32230.0,0.00027423]
[1610373873134,0.00205849,32393.0,32230.0,0.00027423]
[1610373873333,0.11071849,32393.0,32230.0,1.50027423]
[1610373873539,0.10866,32393.0,32230.0,1.50027423]
[1610373873743,0.10866,32393.0,32231.0,0.00027417]
[1610373873942,4.2779,32396.0,32243.0,4.4996]
[1610373874144,0.13632608,32394.0,32244.0,1.5]
[1610373874340,0.21077608,32394.0,32245.0,0.00976568]
[1610373874537,4.14735,32396.0,32245.0,0.03868347]
[1610373875247,4.14735,32396.0,32261.0,2.09587716]
[1610373875463,4.14735,32396.0,32262.0,1.5]
[1610373875677,4.14735,32396.0,32267.0,2.09983569]
[1610373876088,4.14735,32396.0,32322.0,0.13632608]
[1610373876089,0.13632608,32342.0,32322.0,0.13632608]
[1610373876264,0.22863608,32342.0,32268.0,0.00975928]
[1610373876479,0.22863608,32342.0,32264.0,0.00027391]
[1610373876636,0.22863608,32342.0,32269.0,0.5699]
[1610373876837,0.09231,32342.0,32269.0,0.08635399]
[1610373877036,0.09231,32342.0,32269.0,0.08608]
[1610373877235,0.09231,32342.0,32270.0,0.00027399]
[1610373877636,0.07728,32402.0,32270.0,0.00027399]
[1610373877835,0.03855,32411.0,32270.0,0.00976181]
[1610373878036,0.13632608,32377.0,32351.0,0.13632608]
[1610373878238,0.20552608,32377.0,32351.0,0.13632608]
[1610373878435,0.0692,32377.0,32351.0,0.13632608]
[1610373879038,0.0692,32377.0,32269.0,0.08608]
[1610373879437,0.0692,32377.0,32270.0,0.00027393]
[1610373879637,0.0692,32377.0,32270.0,0.00976212]
[1610373880037,0.0692,32377.0,32350.0,0.13632608]
[1610373882040,0.0692,32377.0,32376.0,0.13632608]
[1610373882239,0.0692,32377.0,32341.0,0.07469]
[1610373882839,0.0692,32377.0,32330.0,0.08374]
[1610373883040,0.0692,32377.0,32322.0,0.08644]
[1610373883254,0.13632608,32383.0,32322.0,0.08644]
[1610373883469,0.0808,32377.0,32323.0,0.00027394]
[1610373884241,0.13632608,32371.0,32367.0,0.13632608]
[1610373884460,0.0808,32377.0,32323.0,0.00027394]
[1610373885243,0.0808,32377.0,32315.0,0.00027394]
[1610373886404,0.0808,32377.0,32314.0,0.09303]
[1610373886568,0.13632608,32351.0,32347.0,0.13632608]
[1610373886779,0.07989,32351.0,32347.0,0.13632608]
[1610373887213,0.07989,32351.0,32294.0,4.3377]
[1610373887470,0.07989,32351.0,32295.0,0.00027399]
[1610373887578,0.07989,32351.0,32295.0,0.10907399]
[1610373888150,0.07989,32351.0,32296.0,0.00027411]
[1610373888796,0.07989,32351.0,32296.0,0.08990411]
[1610373888965,0.07989,32351.0,32296.0,0.08963]
[1610373889346,0.07989,32351.0,32297.0,0.00027417]
[1610373890471,0.07989,32351.0,32347.0,0.13632608]
[1610373890674,0.07989,32351.0,32307.0,0.06875]
[1610373891333,0.07989,32351.0,32308.0,0.00027409]
[1610373891676,0.0808,32377.0,32308.0,0.00027409]
[1610373891882,4.4412,32398.0,32308.0,0.00027409]
[1610373892328,0.3785326,32395.0,32308.0,0.00027409]
[1610373892493,0.13632608,32350.0,32340.0,0.13632608]
[1610373892767,0.22019608,32350.0,32308.0,0.00027409]
[1610373893359,0.22019608,32350.0,32296.0,0.08963]
[1610373893652,0.22019608,32350.0,32297.0,0.00027424]
[1610373894052,0.22019608,32350.0,32295.0,0.00027424]
[1610373894451,0.08387,32350.0,32294.0,4.3377]
[1610373895458,0.08387,32350.0,32244.0,0.2847]
[1610373896053,0.08387,32350.0,32245.0,0.00027449]
[1610373896257,0.00038035,32349.0,32245.0,0.00027449]
[1610373896454,0.13632608,32256.0,32251.0,0.13632608]
[1610373896654,0.11058,32256.0,32251.0,0.13632608]
[1610373896855,0.72938097,32376.0,32251.0,0.13632608]
[1610373897069,0.73018547,32379.0,32252.0,0.00027458]
[1610373897455,0.03669246,32378.0,32252.0,0.00027458]
[1610373897656,0.23965295,32378.0,32252.0,0.00027458]
[1610373897856,0.10986049,32378.0,32252.0,0.00027458]
[1610373898054,0.00038041,32377.0,32252.0,0.00027458]
[1610373898257,0.72126197,32361.0,32252.0,0.00027458]
[1610373898462,0.13632608,32315.0,32298.0,0.13632608]
[1610373898666,0.24120608,32315.0,32298.0,0.13632608]
[1610373899262,0.08258,32315.0,32298.0,0.13632608]
[1610373900058,0.08258,32315.0,32251.0,2.18222316]
[1610373900260,0.08258,32315.0,32265.0,0.03]
[1610373900462,0.13632608,32293.0,32283.0,0.13632608]
[1610373900660,0.0789,32293.0,32269.0,0.00027448]
[1610373901058,0.08606,32293.0,32269.0,0.00027448]
[1610373902561,0.08606,32293.0,32268.0,4.7379]
[1610373903158,0.13632608,32269.0,32268.0,4.7379]
[1610373903356,0.21903608,32269.0,32268.0,4.7379]
[1610373903557,0.21903608,32269.0,32265.0,0.03]
[1610373904158,0.21903608,32269.0,32229.0,0.1017]
[1610373904358,0.21903608,32269.0,32217.0,0.2711]
[1610373904662,0.21903608,32269.0,32230.0,0.00027445]
[1610373904861,0.08271,32269.0,32218.0,0.00027447]
[1610373905223,0.13632608,32219.0,32218.0,0.00027447]
[1610373905420,0.23524608,32219.0,32210.0,0.00027451]
[1610373905577,0.23524608,32219.0,32216.0,0.00027454]
[1610373905808,0.23524608,32219.0,32209.0,4.2227]
[1610373906786,0.23524608,32219.0,32169.0,4.3857]
[1610373907019,0.23524608,32219.0,32158.0,0.06758115]
[1610373907191,0.13632608,32159.0,32158.0,0.06758115]
[1610373907367,0.09351,32160.0,32159.0,0.0002748]
[1610373907779,0.09351,32160.0,32158.0,0.06758115]
[1610373907988,0.11217,32161.0,32158.0,0.06758115]
[1610373908172,0.01866,32161.0,32158.0,0.06758115]
[1610373909193,0.13632608,32159.0,32158.0,0.06758115]
[1610373909413,0.01866,32161.0,32158.0,0.06758115]
[1610373909619,4.3366,32197.0,32158.0,0.06758115]
[1610373910532,4.3366,32197.0,32158.0,0.15231115]
[1610373910602,0.09892,32219.0,32158.0,0.15231115]
[1610373910974,4.7879,32236.0,32158.0,0.15231115]
[1610373911451,0.13632608,32220.0,32158.0,0.15231115]
[1610373911618,0.23545608,32220.0,32158.0,0.15231115]
[1610373913656,0.13632608,32180.0,32158.0,0.15231115]
[1610373913705,0.24079608,32180.0,32158.0,0.15231115]
[1610373913869,0.24079608,32180.0,32158.0,0.06758115]
[1610373915425,0.03489608,32180.0,32158.0,0.06758115]
[1610373915586,0.03489608,32180.0,32158.0,0.36010283]
[1610373916510,0.09905,32192.0,32158.0,0.36010283]
[1610373916705,0.09905,32192.0,32158.0,0.45227283]
[1610373917672,0.09905,32192.0,32158.0,0.36010283]
[1610373917874,0.13632608,32188.0,32166.0,0.13632608]
[1610373918074,0.09905,32192.0,32166.0,0.13632608]
[1610373918274,4.2889,32211.0,32166.0,0.13632608]
[1610373918474,4.2889,32211.0,32166.0,0.22445608]
[1610373919874,4.2889,32211.0,32210.0,0.13632608]
[1610373920074,4.2889,32211.0,32189.0,0.09503]
[1610373920275,4.40038,32211.0,32189.0,0.09503]
[1610373921073,4.40038,32211.0,32166.0,0.08813]
[1610373921528,4.40038,32211.0,32158.0,0.36010283]
[1610373921875,4.40038,32211.0,32167.0,0.13632608]
[1610373922076,4.40038,32211.0,32158.0,0.36010283]
[1610373922474,0.02,32189.0,32158.0,0.36010283]
[1610373922685,0.09951,32189.0,32158.0,0.36010283]
[1610373923579,4.0986,32195.0,32158.0,0.36010283]
[1610373923776,0.10095,32189.0,32158.0,0.36010283]
[1610373925577,0.08389,32189.0,32158.0,0.36010283]
[1610373925976,0.08389,32189.0,32176.0,0.13632608]
[1610373927179,0.08389,32189.0,32158.0,0.36010283]
[1610373928096,0.13632608,32162.0,32158.0,0.36010283]
[1610373928287,0.23491608,32162.0,32158.0,0.36010283]
[1610373928895,0.0933,32161.0,32158.0,0.36010283]
[1610373929094,0.23491608,32162.0,32159.0,0.00027003]